Body,Body Name,Date,TransNo,Amount � (Excl VAT),Supplier name,Description,Expense Area,Expense Type,Expense Code,
http://opendatacommunities.org/id/london-borough-council/sutton,London Borough of Sutton,15/04/2019,1272895,4.99 , AMZN MKTP UK MZ7V78814,TOYS/EQUIPMENT,Peoples Services Directorate,Education Equipment,F009,
http://opendatacommunities.org/id/london-borough-council/sutton,London Borough of Sutton,12/04/2019,1272895,24.99 , AMAZON.CO.UK MZ7PK7514,TOYS/EQUIPMENT,Peoples Services Directorate,Education Equipment,F009,
http://opendatacommunities.org/id/london-borough-council/sutton,London Borough of Sutton,04/04/2019,1272895,6.66 , AMZNMKTPLACE,TOYS/EQUIPMENT,Peoples Services Directorate,Education Equipment,F009,
http://opendatacommunities.org/id/london-borough-council/sutton,London Borough of Sutton,22/04/2019,1272895,61.04 , W M MORRISONS.COM,GROCERIES,Peoples Services Directorate,Provisions - General,F150,
http://opendatacommunities.org/id/london-borough-council/sutton,London Borough of Sutton,07/04/2019,1272895,117.61 , W M MORRISONS.COM,GROCERY SHOP,Peoples Services Directorate,Provisions - General,F150,
http://opendatacommunities.org/id/london-borough-council/sutton,London Borough of Sutton,02/04/2019,1272895,22.95 , SAINSBURYS SACAT 2006,GROCERIES,Peoples Services Directorate,Provisions - General,F150,
http://opendatacommunities.org/id/london-borough-council/sutton,London Borough of Sutton,22/04/2019,1272895,129.91 , W M MORRISONS.COM,GROCERIES,Peoples Services Directorate,Refreshments,F155,
http://opendatacommunities.org/id/london-borough-council/sutton,London Borough of Sutton,13/04/2019,1272895,20.00 , OYSTER AUTO-TOP UP,20.00 AUTO TOP UP - A530 0044 9999 15TH APRIL.PNG,Peoples Services Directorate,Travelling and Subsistence Allowances,A530,
http://opendatacommunities.org/id/london-borough-council/sutton,London Borough of Sutton,13/04/2019,1272895,20.00 , OYSTER AUTO-TOP UP,20.00 AUTO TOP UP - A530 0044 9999,Peoples Services Directorate,Travelling and Subsistence Allowances,A530,
http://opendatacommunities.org/id/london-borough-council/sutton,London Borough of Sutton,10/04/2019,1272895,20.00 , OYSTER AUTO-TOP UP,20.00 AUTO TOP UP - A530 0044 9999,Peoples Services Directorate,Travelling and Subsistence Allowances,A530,
http://opendatacommunities.org/id/london-borough-council/sutton,London Borough of Sutton,18/04/2019,1272895,45.00 , ENVIRONMENT AGENCY,VAT NO.662490134 - UK GOV FISHING ROD LICENCE,Peoples Services Directorate,Provisions - General,F150,
http://opendatacommunities.org/id/london-borough-council/sutton,London Borough of Sutton,25/04/2019,1272895,167.00 , NATECLA,,Sutton College,Conferences - Fees,A525,
http://opendatacommunities.org/id/london-borough-council/sutton,London Borough of Sutton,25/04/2019,1272895,109.07 , TRAINLINE,,Sutton College,Staff Travelling Expenses,E130,
http://opendatacommunities.org/id/london-borough-council/sutton,London Borough of Sutton,02/04/2019,1272895,17.06 , AMZNMKTPLACE,CONVERTER ADAPTOR BOX,Sutton College,Purchase of IT Equipment,F380,
http://opendatacommunities.org/id/london-borough-council/sutton,London Borough of Sutton,25/04/2019,1272895,51.68 , FIRST DATA GLOBAL LEAS,APRIL TERMINAL RENTAL FOR SUTTON CENTRE,Sutton College,Administrative Equipment,F001,
http://opendatacommunities.org/id/london-borough-council/sutton,London Borough of Sutton,09/04/2019,1272895,17.06 , AMZN MKTP UK MZ7SB2G94,,Sutton College,Administrative Equipment,F001,
http://opendatacommunities.org/id/london-borough-council/sutton,London Borough of Sutton,09/04/2019,1272895,17.06 , AMZNMKTPLACE,PANIC ALARM,Sutton College,Health and Safety Equipment,F005,
http://opendatacommunities.org/id/london-borough-council/sutton,London Borough of Sutton,08/04/2019,1272895,3.56 , AMZN MKTP UK MZ7CT1GV4,BATTERIES,Sutton College,Health and Safety Equipment,F005,
http://opendatacommunities.org/id/london-borough-council/sutton,London Borough of Sutton,12/04/2019,1272895,15.98 , GLS EDUCATIONAL,ENVELOPES,Sutton College,Stationery,F220,
http://opendatacommunities.org/id/london-borough-council/sutton,London Borough of Sutton,25/04/2019,1272895,25.84 , FIRST DATA GLOBAL LEAS,APRIL TERMINAL WALLINGTON CENTRE,Sutton College,Administrative Equipment,F001,
http://opendatacommunities.org/id/london-borough-council/sutton,London Borough of Sutton,08/04/2019,1272895,25.00 , WWW.CITYANDGUILDS.COM,APPRENTICESHIP REGISTRATION,Sutton College,Fees - Other,F299,
http://opendatacommunities.org/id/london-borough-council/sutton,London Borough of Sutton,16/04/2019,1272895,28.80 , PAYPAL  TYSEWLIMITE,BERMINA RIVA BULB,Sutton College,Education Equipment,F009,
http://opendatacommunities.org/id/london-borough-council/sutton,London Borough of Sutton,11/04/2019,1272895,16.43 , AMAZON.CO.UK MZ7RK6MM4,,Sutton College,Education Equipment,F009,
http://opendatacommunities.org/id/london-borough-council/sutton,London Borough of Sutton,03/04/2019,1272895,64.41 , WILKO.COM,HORTICULTURAL MATERIALS FOR SPRINGBOARD/LLDD CLASSES,Sutton College,Education Equipment,F009,
http://opendatacommunities.org/id/london-borough-council/sutton,London Borough of Sutton,25/04/2019,1272895,20.00 , OYSTER AUTO-TOP UP,20.00 AUTO TOP UP - A530 0301 9999,Peoples Services Directorate,Travelling and Subsistence Allowances,A530,
http://opendatacommunities.org/id/london-borough-council/sutton,London Borough of Sutton,20/04/2019,1272895,20.00 , OYSTER AUTO-TOP UP,20.00 - A530 0301 9999 - YOT -,Peoples Services Directorate,Travelling and Subsistence Allowances,A530,
http://opendatacommunities.org/id/london-borough-council/sutton,London Borough of Sutton,18/04/2019,1272895,20.00 , OYSTER AUTO-TOP UP,20.00 - A530 0301 9999,Peoples Services Directorate,Travelling and Subsistence Allowances,A530,
http://opendatacommunities.org/id/london-borough-council/sutton,London Borough of Sutton,18/04/2019,1272895,20.00 , OYSTER AUTO-TOP UP,20.00 - A530 0301 9999,Peoples Services Directorate,Travelling and Subsistence Allowances,A530,
http://opendatacommunities.org/id/london-borough-council/sutton,London Borough of Sutton,21/04/2019,1272895,20.00 , OYSTER AUTO-TOP UP,20.00 - A530 0301 9999 - YOT,Peoples Services Directorate,Travelling and Subsistence Allowances,A530,
http://opendatacommunities.org/id/london-borough-council/sutton,London Borough of Sutton,22/04/2019,1272895,20.00 , OYSTER AUTO-TOP UP,20.00 - A530 0301 9999 - YOT - 22.04.2019.PNG,Peoples Services Directorate,Travelling and Subsistence Allowances,A530,
http://opendatacommunities.org/id/london-borough-council/sutton,London Borough of Sutton,29/03/2019,1272895,20.00 , OYSTER AUTO-TOP UP,20.00 AUTO TOP UP - A530 0304 9999- LCT.PNG,Peoples Services Directorate,Travelling and Subsistence Allowances,A530,
http://opendatacommunities.org/id/london-borough-council/sutton,London Borough of Sutton,30/03/2019,1272895,20.00 , OYSTER AUTO-TOP UP,20.00 AUTO TOP UP - A530 0304 9999- LCT.PNG,Peoples Services Directorate,Travelling and Subsistence Allowances,A530,
http://opendatacommunities.org/id/london-borough-council/sutton,London Borough of Sutton,30/03/2019,1272895,20.00 , OYSTER AUTO-TOP UP,20.00 AUTO TOP UP - A530 0304 9999- LCT.PNG,Peoples Services Directorate,Travelling and Subsistence Allowances,A530,
http://opendatacommunities.org/id/london-borough-council/sutton,London Borough of Sutton,27/03/2019,1272895,20.00 , OYSTER AUTO-TOP UP,20.00 AUTO TOP UP - A530 0304 9999- LCT.PNG,Peoples Services Directorate,Travelling and Subsistence Allowances,A530,
http://opendatacommunities.org/id/london-borough-council/sutton,London Borough of Sutton,25/04/2019,1272895,8.70 , POPPINS RESTAURANT,RA ACTIVITY,Peoples Services Directorate,Personal Requisites,F106,
http://opendatacommunities.org/id/london-borough-council/sutton,London Borough of Sutton,18/04/2019,1272895,34.80 , B & Q 1256,ALLOTMENT QUAD,Peoples Services Directorate,Personal Requisites,F106,
http://opendatacommunities.org/id/london-borough-council/sutton,London Borough of Sutton,15/04/2019,1272895,11.00 , L B SOUTHWARK - INT,MA MOTHER BIRTH CERT,Peoples Services Directorate,Personal Requisites,F106,
http://opendatacommunities.org/id/london-borough-council/sutton,London Borough of Sutton,15/04/2019,1272895,13.00 , LB CROYDON,AO MUM BIRTH CERTIFICATE,Peoples Services Directorate,Personal Requisites,F106,
http://opendatacommunities.org/id/london-borough-council/sutton,London Borough of Sutton,10/04/2019,1272895,3.58 , BUDGENS,RA ACTIVITY,Peoples Services Directorate,Personal Requisites,F106,
http://opendatacommunities.org/id/london-borough-council/sutton,London Borough of Sutton,08/04/2019,1272895,4.30 , TESCO STORES 6664,JM ACTIVITY,Peoples Services Directorate,Personal Requisites,F106,
http://opendatacommunities.org/id/london-borough-council/sutton,London Borough of Sutton,04/04/2019,1272895,11.00 , WESTSUSSEX.GOV.UK,SRA BIRTH CERTIFICATE,Peoples Services Directorate,Personal Requisites,F106,
http://opendatacommunities.org/id/london-borough-council/sutton,London Borough of Sutton,16/04/2019,1272895,189.00 , TRAVELODGE,189 - H202 0304 9999 TRAVELODGE 94.50 EACH,Peoples Services Directorate,Accommodation - Bed and Breakfast,H202,
http://opendatacommunities.org/id/london-borough-council/sutton,London Borough of Sutton,25/04/2019,1272895,203.33 , CURRYS ONLINE,AB SETTING UP,Peoples Services Directorate,Set Up Costs - Children Leaving Care,H336,
http://opendatacommunities.org/id/london-borough-council/sutton,London Borough of Sutton,25/04/2019,1272895,170.00 , CURRYS ONLINE,DN SETTING UP,Peoples Services Directorate,Set Up Costs - Children Leaving Care,H336,
http://opendatacommunities.org/id/london-borough-council/sutton,London Borough of Sutton,26/03/2019,1272895,22.00 , LBSUTTON,22.00 - F106 0305 9999 -SUTTON REGISTER OFFICE P.PNG,Peoples Services Directorate,Personal Requisites,F106,
http://opendatacommunities.org/id/london-borough-council/sutton,London Borough of Sutton,26/03/2019,1272895,301.95 , WWW.ARGOS.CO.UK,301.95 - F106 0305 9999 - ARGOS.PNG,Peoples Services Directorate,Personal Requisites,F106,
http://opendatacommunities.org/id/london-borough-council/sutton,London Borough of Sutton,18/04/2019,1272895,44.00 , TRAVELODGE,EMERGENCY ACCOMMODATION,Peoples Services Directorate,Accommodation - Bed and Breakfast,H202,
http://opendatacommunities.org/id/london-borough-council/sutton,London Borough of Sutton,12/04/2019,1272895,15.00 , OYSTER ONLINE,OYSTER TOP UP,Peoples Services Directorate,Travelling and Subsistence Allowances,A530,
http://opendatacommunities.org/id/london-borough-council/sutton,London Borough of Sutton,25/04/2019,1272895,84.58 , TRAVELODGE,101.50 - H211 0310 9999 - PAUL - TRAVELODGE.PNG,Peoples Services Directorate,C.C.A Rent & Utilities,H211,
http://opendatacommunities.org/id/london-borough-council/sutton,London Borough of Sutton,23/04/2019,1272895,184.65 , TRAVELODGE,184.65 - H212 0310 9999 - TRAVELODGE .PNG,Peoples Services Directorate,C.C.A Travel & Subsistance,H212,
http://opendatacommunities.org/id/london-borough-council/sutton,London Borough of Sutton,18/04/2019,1272895,585.50 , TRAVELODGE,EMERGENCY ACCOMMODATION - TRAVELODGE,Peoples Services Directorate,C.C.A Travel & Subsistance,H212,
http://opendatacommunities.org/id/london-borough-council/sutton,London Borough of Sutton,10/04/2019,1272895,170.00 , COUNTY COUNTY,0.00 - LINKEDIN - A500 0380 9999,Peoples Services Directorate,Travelling and Subsistence Allowances,A530,
http://opendatacommunities.org/id/london-borough-council/sutton,London Borough of Sutton,05/04/2019,1272895,66.00 , WWW.SOARTRAMPOLINEPARK,,Peoples Services Directorate,Travelling and Subsistence Allowances,A530,
http://opendatacommunities.org/id/london-borough-council/sutton,London Borough of Sutton,03/04/2019,1272895,48.98 , OPODO ID 4565758450,LINKEDIN  AD,Peoples Services Directorate,Travelling and Subsistence Allowances,A530,
http://opendatacommunities.org/id/london-borough-council/sutton,London Borough of Sutton,28/03/2019,1272895,20.00 , OYSTER AUTO-TOP UP,20.00 AUTO TOP UP - A530 0311 9999 .PNG,Peoples Services Directorate,Travelling and Subsistence Allowances,A530,
http://opendatacommunities.org/id/london-borough-council/sutton,London Borough of Sutton,29/03/2019,1272895,60.00 , WWW.WIGHTLINK.CO.UK,60.00 - WIGHTLINK FERRIES - A530 0311 9999.PNG,Peoples Services Directorate,Travelling and Subsistence Allowances,A530,
http://opendatacommunities.org/id/london-borough-council/sutton,London Borough of Sutton,27/03/2019,1272895,20.00 , OYSTER AUTO-TOP UP,20.00 AUTO TOP UP - A530 0311 9999 .PNG,Peoples Services Directorate,Travelling and Subsistence Allowances,A530,
http://opendatacommunities.org/id/london-borough-council/sutton,London Borough of Sutton,03/04/2019,1272895,76.00 , THE LONDON EYE,76.00 LONDON EYE TICKETS 06.04.2019 .PDF  - F106 0311 9999,Peoples Services Directorate,Personal Requisites,F106,
http://opendatacommunities.org/id/london-borough-council/sutton,London Borough of Sutton,29/03/2019,1272895,73.00 , GEN REGISTER OFFICE,73.00 F106 0311 9999 BIRTH CERT GRO.PNG,Peoples Services Directorate,Personal Requisites,F106,
http://opendatacommunities.org/id/london-borough-council/sutton,London Borough of Sutton,29/03/2019,1272895,145.30 , WWW.TENPIN.CO.UK,"145.30, F106 0311 9999, TENPIN BOWLING CROYDON .PNG",Peoples Services Directorate,Personal Requisites,F106,
http://opendatacommunities.org/id/london-borough-council/sutton,London Borough of Sutton,29/03/2019,1272895,22.00 , LBSUTTON,22.00 F106 0311 9999 BIRTH CERT SUTTON REGISTER OFFICE.PNG,Peoples Services Directorate,Personal Requisites,F106,
http://opendatacommunities.org/id/london-borough-council/sutton,London Borough of Sutton,17/04/2019,1272895,113.94 , LOCKMEADOW ENTERTAINME,GRAVITY TRAMPOLINE PARK,Peoples Services Directorate,Personal Requisites,F106,
http://opendatacommunities.org/id/london-borough-council/sutton,London Borough of Sutton,02/04/2019,1272895,50.00 , VISION-RCL.ORG.UK,CONTACT ACTIVITY,Peoples Services Directorate,Personal Requisites,F106,
http://opendatacommunities.org/id/london-borough-council/sutton,London Borough of Sutton,15/04/2019,1272895,33.00 , LBSUTTON,BIIRTH CERTS LAC TEAM,Peoples Services Directorate,Personal Requisites,F106,
http://opendatacommunities.org/id/london-borough-council/sutton,London Borough of Sutton,10/04/2019,1272895,246.25 , POST OFFICE COUNTER,246.25 PASSPORT RECEIPTS 1.PDF,Peoples Services Directorate,Personal Requisites,F106,
http://opendatacommunities.org/id/london-borough-council/sutton,London Borough of Sutton,28/03/2019,1272895,(136.50), GEN REGISTER OFFICE,136.50 - F106 0311 9999 - GRO.PNG REFUND,Peoples Services Directorate,Personal Requisites,F106,
http://opendatacommunities.org/id/london-borough-council/sutton,London Borough of Sutton,27/03/2019,1272895,(136.50), GEN REGISTER OFFICE,136.50 - F106 0311 9999 - GRO.PNG,Peoples Services Directorate,Personal Requisites,F106,
http://opendatacommunities.org/id/london-borough-council/sutton,London Borough of Sutton,24/04/2019,1272895,125.00 , HOLIDAY INNS,125.00 - H202 0311 9999 - HOLIDAY INN LAC.PDF,Peoples Services Directorate,Accommodation - Bed and Breakfast,H202,
http://opendatacommunities.org/id/london-borough-council/sutton,London Borough of Sutton,12/04/2019,1272895,60.00 , WWW.WIGHTLINK.CO.UK,60.00- H212 0311 9999 - WIGHTLINK FERRIES,Peoples Services Directorate,C.C.A Travel & Subsistance,H212,
http://opendatacommunities.org/id/london-borough-council/sutton,London Borough of Sutton,25/04/2019,1272895,20.00 , OYSTER AUTO-TOP UP,20.00 - A530 0312 9999 -,Peoples Services Directorate,Travelling and Subsistence Allowances,A530,
http://opendatacommunities.org/id/london-borough-council/sutton,London Borough of Sutton,25/04/2019,1272895,20.00 , OYSTER AUTO-TOP UP,20.00 - A530 0312 9999 - OYSTER CARD TOP UP,Peoples Services Directorate,Travelling and Subsistence Allowances,A530,
http://opendatacommunities.org/id/london-borough-council/sutton,London Borough of Sutton,17/04/2019,1272895,20.00 , OYSTER AUTO-TOP UP,20.00 - A530 0312 9999,Peoples Services Directorate,Travelling and Subsistence Allowances,A530,
http://opendatacommunities.org/id/london-borough-council/sutton,London Borough of Sutton,16/04/2019,1272895,51.40 , NATIONAL EXPRESS LIMIT,51.40 - A530 0312 9999 - NATIONAL COACH TICKETS,Peoples Services Directorate,Travelling and Subsistence Allowances,A530,
http://opendatacommunities.org/id/london-borough-council/sutton,London Borough of Sutton,27/03/2019,1272895,508.00 , HM PASSPORT,508.00 - F106 0312 9999 - HMPO OFFICE.PNG,Peoples Services Directorate,Personal Requisites,F106,
http://opendatacommunities.org/id/london-borough-council/sutton,London Borough of Sutton,28/03/2019,1272895,143.00 , GEN REGISTER OFFICE,143.00 - F106 0312 9999 - GRO.PNG,Peoples Services Directorate,Personal Requisites,F106,
http://opendatacommunities.org/id/london-borough-council/sutton,London Borough of Sutton,27/03/2019,1272895,143.00 , GEN REGISTER OFFICE,143.00 - F106 0312 9999 - GRO.PNG,Peoples Services Directorate,Personal Requisites,F106,
http://opendatacommunities.org/id/london-borough-council/sutton,London Borough of Sutton,24/04/2019,1272895,17.70 , NATIONAL EXPRESS LIMIT,COACH TICKET AM,Peoples Services Directorate,C.C.A Travel & Subsistance,H212,
http://opendatacommunities.org/id/london-borough-council/sutton,London Borough of Sutton,18/04/2019,1272895,20.00 , OYSTER AUTO-TOP UP,20.00 - A530 0320 9999,Peoples Services Directorate,Travelling and Subsistence Allowances,A530,
http://opendatacommunities.org/id/london-borough-council/sutton,London Borough of Sutton,17/04/2019,1272895,20.00 , OYSTER AUTO-TOP UP,20.00 - A530 0318 9999,Peoples Services Directorate,Travelling and Subsistence Allowances,A530,
http://opendatacommunities.org/id/london-borough-council/sutton,London Borough of Sutton,14/04/2019,1272895,20.00 , OYSTER AUTO-TOP UP,20.00 - A530 0318 9999 -,Peoples Services Directorate,Travelling and Subsistence Allowances,A530,
http://opendatacommunities.org/id/london-borough-council/sutton,London Borough of Sutton,29/03/2019,1272895,199.00 , UKBA6486754225,199.00 - F299 0318 9999 - UKBA.PNG,Peoples Services Directorate,Fees - Other,F299,
http://opendatacommunities.org/id/london-borough-council/sutton,London Borough of Sutton,04/04/2019,1272895,27.49 , EASYJET,27.49 - H211 0318 9999 - EASY JET - EXTRA LUGGAGE.PNG,Peoples Services Directorate,C.C.A Rent & Utilities,H211,
http://opendatacommunities.org/id/london-borough-council/sutton,London Borough of Sutton,03/04/2019,1272895,27.49 , EASYJET,27.49 - H211 0318 9999 - EASY JET - EXTRA LUGGAGE.PNG,Peoples Services Directorate,C.C.A Rent & Utilities,H211,
http://opendatacommunities.org/id/london-borough-council/sutton,London Borough of Sutton,03/04/2019,1272895,252.84 , EASYJET,252.84 - H212 0318 9999 - PLANE TICKET,Peoples Services Directorate,C.C.A Travel & Subsistance,H212,
http://opendatacommunities.org/id/london-borough-council/sutton,London Borough of Sutton,20/04/2019,1272895,20.00 , OYSTER AUTO-TOP UP,20.00 - A530 0320 9999 -,Peoples Services Directorate,Travelling and Subsistence Allowances,A530,
http://opendatacommunities.org/id/london-borough-council/sutton,London Borough of Sutton,17/04/2019,1272895,20.00 , OYSTER AUTO-TOP UP,20.00 - A530 0320 9999,Peoples Services Directorate,Travelling and Subsistence Allowances,A530,
http://opendatacommunities.org/id/london-borough-council/sutton,London Borough of Sutton,05/04/2019,1272895,285.00 , THE HOUSE INC LTD,285.00 - F106 0320 9999 - FLOWERS FOR FOSTERING PANEL.PNG,Peoples Services Directorate,Personal Requisites,F106,
http://opendatacommunities.org/id/london-borough-council/sutton,London Borough of Sutton,02/04/2019,1272895,295.90 , CHALLENGETROPHIES CO U,295.90 - F106 0323 9999 - TROPHIES FOR FOSTER CARERS.PNG,Peoples Services Directorate,Personal Requisites,F106,
http://opendatacommunities.org/id/london-borough-council/sutton,London Borough of Sutton,11/04/2019,1272895,47.94 , POSTURITE LTD,47.94 - F106 0324 9999 - FOOTMATE FOOTREST - POSTURITE .PNG,Peoples Services Directorate,Health and Safety Equipment,F005,
http://opendatacommunities.org/id/london-borough-council/sutton,London Borough of Sutton,05/04/2019,1272895,20.00 , OYSTER AUTO-TOP UP,20.00 AUTO TOP UP - A530 0330 9999 -,Chief Executive's Directorate,Travelling and Subsistence Allowances,A530,
http://opendatacommunities.org/id/london-borough-council/sutton,London Borough of Sutton,05/04/2019,1272895,20.00 , OYSTER AUTO-TOP UP,20.00 AUTO TOP UP - A530 0330 9999 -,Chief Executive's Directorate,Travelling and Subsistence Allowances,A530,
http://opendatacommunities.org/id/london-borough-council/sutton,London Borough of Sutton,05/04/2019,1272895,20.00 , OYSTER AUTO-TOP UP,20.00 AUTO TOP UP - A530 0330 9999 -,Chief Executive's Directorate,Travelling and Subsistence Allowances,A530,
http://opendatacommunities.org/id/london-borough-council/sutton,London Borough of Sutton,24/04/2019,1272895,145.00 , HOLIDAY INNS,145.00 - H202 0331 9999 - HOLIDAY INN SUTTON .PDF,Chief Executive's Directorate,Accommodation - Bed and Breakfast,H202,
http://opendatacommunities.org/id/london-borough-council/sutton,London Borough of Sutton,24/04/2019,1272895,362.00 , HOLIDAY INNS,362.00 - H202 0331 9999 - HOLIDAY INN SUTTON .PD,Chief Executive's Directorate,Accommodation - Bed and Breakfast,H202,
http://opendatacommunities.org/id/london-borough-council/sutton,London Borough of Sutton,24/04/2019,1272895,112.00 , HOLIDAY INNS,112.00- H202 0331 9999 - HOLIDAY INN SUTTON .PDF,Chief Executive's Directorate,Accommodation - Bed and Breakfast,H202,
http://opendatacommunities.org/id/london-borough-council/sutton,London Borough of Sutton,12/04/2019,1272895,35.20 , EMPIRE CINEMAS,35.20 - F106 0340 9999 - EMPIRE CINEMA TICKETS.PNG,Peoples Services Directorate,Personal Requisites,F106,
http://opendatacommunities.org/id/london-borough-council/sutton,London Borough of Sutton,26/03/2019,1272895,49.95 , TESCO STORES 5999,49.95 - F155 0340 9999 - REFRESHMENTS SFC.PNG,Peoples Services Directorate,Refreshments,F155,
http://opendatacommunities.org/id/london-borough-council/sutton,London Borough of Sutton,14/04/2019,1272895,20.00 , OYSTER AUTO-TOP UP,20.00 AUTO TOP UP - A530 0359 9999,Peoples Services Directorate,Travelling and Subsistence Allowances,A530,
http://opendatacommunities.org/id/london-borough-council/sutton,London Borough of Sutton,12/04/2019,1272895,20.00 , OYSTER AUTO-TOP UP,20.00 AUTO TOP UP - A530 0359 9999 - 12.04.2019.PN,Peoples Services Directorate,Travelling and Subsistence Allowances,A530,
http://opendatacommunities.org/id/london-borough-council/sutton,London Borough of Sutton,10/04/2019,1272895,20.00 , OYSTER AUTO-TOP UP,20.00 AUT TOP UP - A530 0359 9999 10TH APRIL.PNG,Peoples Services Directorate,Travelling and Subsistence Allowances,A530,
http://opendatacommunities.org/id/london-borough-council/sutton,London Borough of Sutton,10/04/2019,1272895,20.00 , OYSTER AUTO-TOP UP,20.00 AUT TOP UP - A530 0359 9999,Peoples Services Directorate,Travelling and Subsistence Allowances,A530,
http://opendatacommunities.org/id/london-borough-council/sutton,London Borough of Sutton,07/04/2019,1272895,20.00 , OYSTER AUTO-TOP UP,20.00 AUTO TOP UP - A530 0359 99999 5TH APRIL .PNG,Peoples Services Directorate,Travelling and Subsistence Allowances,A530,
http://opendatacommunities.org/id/london-borough-council/sutton,London Borough of Sutton,04/04/2019,1272895,20.00 , OYSTER AUTO-TOP UP,20.00 AUTO TOP UP - A530 0359 99999 5TH APRIL .PNG,Peoples Services Directorate,Travelling and Subsistence Allowances,A530,
http://opendatacommunities.org/id/london-borough-council/sutton,London Borough of Sutton,28/03/2019,1272895,20.00 , OYSTER AUTO-TOP UP,20.00 AUTO TOP UP - A530 0359 9999 -.PNG,Peoples Services Directorate,Travelling and Subsistence Allowances,A530,
http://opendatacommunities.org/id/london-borough-council/sutton,London Borough of Sutton,08/04/2019,1272895,88.09 , TRAINLINE,TRAIN TICKETS  FOR MEETING WITH THE GOVERNMENT OUTCOMES LAB RE OBCR,Chief Executive's Directorate,Travelling and Subsistence Allowances,A530,
http://opendatacommunities.org/id/london-borough-council/sutton,London Borough of Sutton,26/02/2019,1272895,(18.50), GEN REGISTER OFFICE,0.00 - LINKEDIN - A500 0380 9999,Peoples Services Directorate,Travelling and Subsistence Allowances,A530,
http://opendatacommunities.org/id/london-borough-council/sutton,London Borough of Sutton,04/04/2019,1272895,20.00 , OYSTER AUTO-TOP UP,20.00 - A530 0383 9999 - 04.04.2019 - OYSTER CARD.PNG,Peoples Services Directorate,Travelling and Subsistence Allowances,A530,
http://opendatacommunities.org/id/london-borough-council/sutton,London Borough of Sutton,01/04/2019,1272895,20.00 , OYSTER AUTO-TOP UP,20.00 - A530 0383 9999 - 04.04.2019 - OYSTER CARD.PNG,Peoples Services Directorate,Travelling and Subsistence Allowances,A530,
http://opendatacommunities.org/id/london-borough-council/sutton,London Borough of Sutton,24/04/2019,1272895,70.00 , SURREY CC CARD PAY,70.00 - F106 0383 9999 - GUILFORD SURREY COUNTY COUNCIL BIRTH CERT,Peoples Services Directorate,Personal Requisites,F106,
http://opendatacommunities.org/id/london-borough-council/sutton,London Borough of Sutton,01/04/2019,1272895,672.50 , TRAVELODGE,EMERGENCY ACCOMMODATION,Peoples Services Directorate,C.C.A Rent & Utilities,H211,
http://opendatacommunities.org/id/london-borough-council/sutton,London Borough of Sutton,25/04/2019,1272895,"1,326.95 ", TRAVELODGE,1326.95 - H202 0384 9999 - LISA FIELD TRAVELODGE .,Peoples Services Directorate,Accommodation - Supported Living,H201,
http://opendatacommunities.org/id/london-borough-council/sutton,London Borough of Sutton,15/04/2019,1272895,733.40 , TRAVELODGE,H202 0384 9999 - TRAVELODGE .PNG,Peoples Services Directorate,Accommodation - Bed and Breakfast,H202,
http://opendatacommunities.org/id/london-borough-council/sutton,London Borough of Sutton,15/04/2019,1272895,718.20 , TRAVELODGE,718.20 - H202 0384 9999 - TRAVELODGE .,Peoples Services Directorate,Accommodation - Bed and Breakfast,H202,
http://opendatacommunities.org/id/london-borough-council/sutton,London Borough of Sutton,08/04/2019,1272895,729.60 , TRAVELODGE,H202 0384 9999 - TRAVELODGE .PNG,Peoples Services Directorate,Accommodation - Bed and Breakfast,H202,
http://opendatacommunities.org/id/london-borough-council/sutton,London Borough of Sutton,18/04/2019,1272895,154.12 , WWW.IKEA.COM,IKEA,Peoples Services Directorate,Client Care/Assistance,H301,
http://opendatacommunities.org/id/london-borough-council/sutton,London Borough of Sutton,18/04/2019,1272895,415.83 , CURRYS ONLINE,CURRYS PC WORLD,Peoples Services Directorate,Client Care/Assistance,H301,
http://opendatacommunities.org/id/london-borough-council/sutton,London Borough of Sutton,05/04/2019,1272895,19.94 , AMAZON.CO.UK MZ79300P4,ENGLISH PASHTO DICTIONARY FOR UASC CLA,Peoples Services Directorate,LAC - Education,F269,
http://opendatacommunities.org/id/london-borough-council/sutton,London Borough of Sutton,10/04/2019,1272895,20.00 , OYSTER AUTO-TOP UP,OYSTER TOP UP,"Environment, Housing & Regeneration Directorate",General Office Expenses,F235,
http://opendatacommunities.org/id/london-borough-council/sutton,London Borough of Sutton,10/04/2019,1272895,20.00 , OYSTER AUTO-TOP UP,OYSTER TOP UP,"Environment, Housing & Regeneration Directorate",General Office Expenses,F235,
http://opendatacommunities.org/id/london-borough-council/sutton,London Borough of Sutton,28/03/2019,1272895,20.00 , OYSTER AUTO-TOP UP,OYSTERCARD TOP UP,"Environment, Housing & Regeneration Directorate",General Office Expenses,F235,
http://opendatacommunities.org/id/london-borough-council/sutton,London Borough of Sutton,17/04/2019,1272895,7.99 , AMZNMKTPLACE AMAZON.CO,PHONE CASE FOR PARKING PHONE,"Environment, Housing & Regeneration Directorate",Other Equipment - Purchase,F015,
http://opendatacommunities.org/id/london-borough-council/sutton,London Borough of Sutton,17/04/2019,1272895,29.59 , DEMON PLATES,PLATES FOR ANPR TESTING,"Environment, Housing & Regeneration Directorate",Other Equipment - Purchase,F015,
http://opendatacommunities.org/id/london-borough-council/sutton,London Borough of Sutton,18/04/2019,1272895,34.46 , TRAINLINE,TRAVEL TO CONFERENCE,Chief Executive's Directorate,Conferences - Travel and Subsistence,A526,
http://opendatacommunities.org/id/london-borough-council/sutton,London Borough of Sutton,12/04/2019,1272895,7.99 , AMAZON PRIME MZ0B43HN4,AMAZON PRIME,Chief Executive's Directorate,Materials - General,F100,
http://opendatacommunities.org/id/london-borough-council/sutton,London Borough of Sutton,05/04/2019,1272895,0.99 , AMAZON PRIME MZ4JC2034,1.00 TRANSACTION MADE BY PRIME TO CHECK STATUS OF CARD. THIS PAYMENT LAPSES AFTER NO LONGER THAN 7 BUSINESS DAYS.,Chief Executive's Directorate,Materials - General,F100,
http://opendatacommunities.org/id/london-borough-council/sutton,London Borough of Sutton,07/04/2019,1272895,124.58 , AMAZON.CO.UK MZ5G25PU4," 50 X COMMAND 17206 LARGE PICTURE HANGING STRIPS, 4 PAIRS,WHITE",Chief Executive's Directorate,Materials - General,F100,
http://opendatacommunities.org/id/london-borough-council/sutton,London Borough of Sutton,02/04/2019,1272895,185.68 , WWW.SOLOPRESS.COM,"PRINTING, PUBLICITY MATERIALS",Chief Executive's Directorate,Printing - General,F215,
http://opendatacommunities.org/id/london-borough-council/sutton,London Borough of Sutton,13/04/2019,1272895,8.00 , TESCO STORE 3235,DISHWASHER TABS DUSTPAN/BRUSH TISSUES,Resources Directorate,General Office Expenses,F235,
http://opendatacommunities.org/id/london-borough-council/sutton,London Borough of Sutton,10/04/2019,1272895,20.00 , CAFFE NEO,CEO MEETING HELD AT RUSSETTINGS LUNCH FOR 6 PEOPLE,Resources Directorate,Hospitality (VAT not Recoverable),F325,
http://opendatacommunities.org/id/london-borough-council/sutton,London Borough of Sutton,09/04/2019,1272895,6.72 , WM MORRISONS STORE,FRUIT AND JUICES FOR CEO MEETING,Resources Directorate,Hospitality (VAT not Recoverable),F325,
http://opendatacommunities.org/id/london-borough-council/sutton,London Borough of Sutton,07/04/2019,1272895,24.34 , TESCO STORE 3235,CITIZENSHIP REFRESHMENTS,Resources Directorate,Hospitality (VAT not Recoverable),F325,
http://opendatacommunities.org/id/london-borough-council/sutton,London Borough of Sutton,03/04/2019,1272895,8.32 , SPOTIFY UK,SPOTIFY MUSIC FOR WEDDINGS,Resources Directorate,Subscriptions - General,F450,
http://opendatacommunities.org/id/london-borough-council/sutton,London Borough of Sutton,01/04/2019,1272895,101.14 , B & Q 1191,DECORATION FOR PRE-WEDDING ROOM AND FENCE PAINT FOR OUTSIDE FENCE,Resources Directorate,Miscellaneous Expenses,F620,
http://opendatacommunities.org/id/london-borough-council/sutton,London Borough of Sutton,01/04/2019,1272895,58.75 , DUNELM LTD,FLOWERS FOR GARDEN ROOM,Resources Directorate,Miscellaneous Expenses,F620,
http://opendatacommunities.org/id/london-borough-council/sutton,London Borough of Sutton,15/04/2019,1272895,28.45 , B & Q 1191,H&S SIGNAGE & COMPOST,Resources Directorate,Miscellaneous Expenses,F620,
http://opendatacommunities.org/id/london-borough-council/sutton,London Borough of Sutton,12/04/2019,1272895,38.33 , WOODCOTE GREEN,GARDENING PLANTS AND BROOM,Resources Directorate,Miscellaneous Expenses,F620,
http://opendatacommunities.org/id/london-borough-council/sutton,London Borough of Sutton,09/04/2019,1272895,69.23 , FLORAL IMAGE SUSSEX,CORPORATE FLOWER DISPLAY,Resources Directorate,Miscellaneous Expenses,F620,
http://opendatacommunities.org/id/london-borough-council/sutton,London Borough of Sutton,09/04/2019,1272895,28.93 , STAMPS DIRECT LTD,ADDRESS STAMPS FOR FUNERAL PAPERWORK,Chief Executive's Directorate,Stationery,F220,
http://opendatacommunities.org/id/london-borough-council/sutton,London Borough of Sutton,11/04/2019,1272895,434.40 , URBAN SMOOTHIE BIKES,URBAN SMOOTHIE EXERCISE BIKE HIRE FOR SUTTON HIGH STREET SUSTAINABILITY EVENT,"Environment, Housing & Regeneration Directorate",Hospitality (VAT not Recoverable),F325,
http://opendatacommunities.org/id/london-borough-council/sutton,London Borough of Sutton,30/03/2019,1272895,20.00 , OYSTER AUTO-TOP UP,OYSTERCARD TOP UP,"Environment, Housing & Regeneration Directorate",General Office Expenses,F235,
http://opendatacommunities.org/id/london-borough-council/sutton,London Borough of Sutton,07/04/2019,1272895,20.00 , OYSTER AUTO-TOP UP,OYSTER TOP UP,HRA,General Office Expenses,F235,
http://opendatacommunities.org/id/london-borough-council/sutton,London Borough of Sutton,30/03/2019,1272895,20.00 , OYSTER AUTO-TOP UP,OYSTERCARD TOP UP,HRA,General Office Expenses,F235,
http://opendatacommunities.org/id/london-borough-council/sutton,London Borough of Sutton,27/03/2019,1272895,20.00 , OYSTER AUTO-TOP UP,OYSTERCARD TOP UP,"Environment, Housing & Regeneration Directorate",General Office Expenses,F235,
http://opendatacommunities.org/id/london-borough-council/sutton,London Borough of Sutton,05/04/2019,1272895,53.59 , TRAINLINE,TRAIN TICKET TO THE DATA SOCIAL FINANCE WORKSHOP IN LEEDS,Chief Executive's Directorate,Travelling and Subsistence Allowances,A530,
http://opendatacommunities.org/id/london-borough-council/sutton,London Borough of Sutton,05/04/2019,1272895,23.67 , TRAINLINE,TRAIN TICKET TO THE DATA SOCIAL FINANCE WORKSHOP IN LEEDS,Chief Executive's Directorate,Travelling and Subsistence Allowances,A530,
http://opendatacommunities.org/id/london-borough-council/sutton,London Borough of Sutton,03/04/2019,1272895,20.00 , OYSTER AUTO-TOP UP,TEAM OYSTER,Chief Executive's Directorate,Travelling and Subsistence Allowances,A530,
http://opendatacommunities.org/id/london-borough-council/sutton,London Borough of Sutton,24/04/2019,1272895,175.00 , THE GRANGE,VENUE HIRE AT THE GRANGE AT BEDDINGTON PARK FOR CC&G DIVISIONAL BRIEFING ON 26TH JUNE 2019,Chief Executive's Directorate,Fees - Room Hire,F290,
http://opendatacommunities.org/id/london-borough-council/sutton,London Borough of Sutton,25/04/2019,1272895,250.00 , PAYPAL  LGCOMMS2018,LG COMMS ANNUAL SUBSCRIPTION,Chief Executive's Directorate,Subscriptions - General,F450,
http://opendatacommunities.org/id/london-borough-council/sutton,London Borough of Sutton,15/04/2019,1272895,3.48 , MAILCHIMP    MONTHLY,WEB HOSTING,Chief Executive's Directorate,Fees - Computer Software,F384,
http://opendatacommunities.org/id/london-borough-council/sutton,London Borough of Sutton,14/04/2019,1272895,126.42 , MAILCHIMP    MONTHLY,WEB HOSTING,Chief Executive's Directorate,Fees - Computer Software,F384,
http://opendatacommunities.org/id/london-borough-council/sutton,London Borough of Sutton,13/04/2019,1272895,39.70 , PAYPAL  GOOGLEADDON,FORMPUBLISHER SUBSCRIPTION,Resources Directorate,IT Licences,F385,
http://opendatacommunities.org/id/london-borough-council/sutton,London Borough of Sutton,05/04/2019,1272895,39.67 , PAYPAL  GOOGLEADDON,FORM PUBLISHER AUTO RENEWAL,Resources Directorate,IT Licences,F385,
http://opendatacommunities.org/id/london-borough-council/sutton,London Borough of Sutton,26/03/2019,1272895,97.98 , AMZN MKTP UK MZ4CS8OL4,97.98 - F001 4114 9999 - AMAZON EQUIPT.PNG,Resources Directorate,Administrative Equipment,F001,
http://opendatacommunities.org/id/london-borough-council/sutton,London Borough of Sutton,28/03/2019,1272895,53.42 , AMAZON.CO.UK MZ9LG5ZJ4,53.42 - F015 4114 9999 - AMAZON.PNG,Resources Directorate,Other Equipment - Purchase,F015,
http://opendatacommunities.org/id/london-borough-council/sutton,London Borough of Sutton,25/03/2019,1272895,17.00 , WILKO RETAIL LIMIT,BATTERIES,Resources Directorate,Personal Requisites,F106,
http://opendatacommunities.org/id/london-borough-council/sutton,London Borough of Sutton,26/03/2019,1272895,"2,000.00 ", WM MORRISONS HO CREDIT,MORRISONS,Resources Directorate,Client Care/Assistance,H301,
http://opendatacommunities.org/id/london-borough-council/sutton,London Borough of Sutton,08/04/2019,1272895,31.98 , 123-REG.CO.UK,DOMAIN REG FOR INNOVATE IOT,Chief Executive's Directorate,Corporate Publicity,F356,
http://opendatacommunities.org/id/london-borough-council/sutton,London Borough of Sutton,10/04/2019,1272895,4.98 , WH SMITH,BLUE TACK FOAM PADS,Resources Directorate,Materials - General,F100,
http://opendatacommunities.org/id/london-borough-council/sutton,London Borough of Sutton,23/04/2019,1272895,65.59 , FACEBK 8YDXFM2BL2,FACEBOOK AD,Chief Executive's Directorate,Corporate Publicity,F356,
http://opendatacommunities.org/id/london-borough-council/sutton,London Borough of Sutton,09/04/2019,1272895,24.95 , LCN.COM LTD,WEB DOMAIN FOR SUTTON'S FUTURE,Chief Executive's Directorate,Corporate Publicity,F356,
http://opendatacommunities.org/id/london-borough-council/sutton,London Borough of Sutton,08/04/2019,1272895,35.88 , 123-REG.CO.UK,DOMAIN REG FOR THE SUTTON PLAN,Chief Executive's Directorate,Corporate Publicity,F356,
http://opendatacommunities.org/id/london-borough-council/sutton,London Borough of Sutton,02/04/2019,1272895,(36.92), AMZ AMAZON.CO.UK, Refund,Chief Executive's Directorate,Purchase of IT Equipment,F380,
http://opendatacommunities.org/id/london-borough-council/sutton,London Borough of Sutton,17/04/2019,1272895,21.63 , AMZN MKTP UK MZ3PL86G4,LALO/EPDO PHONE CASES,"Environment, Housing & Regeneration Directorate",Other Equipment - Purchase,F015,
http://opendatacommunities.org/id/london-borough-council/sutton,London Borough of Sutton,16/04/2019,1272895,46.12 , WWW.ECOGRID.CO.UK,UNIVERSAL MANHOLE LIFTING KEY,"Environment, Housing & Regeneration Directorate",Other Equipment - Purchase,F015,
http://opendatacommunities.org/id/london-borough-council/sutton,London Borough of Sutton,24/04/2019,1272895,54.32 , AMZNMKTPLACE,SECONDARY BECC PHONE CONNECTIONS,"Environment, Housing & Regeneration Directorate",Purchase of IT Equipment,F380,
http://opendatacommunities.org/id/london-borough-council/sutton,London Borough of Sutton,24/04/2019,1272895,267.50 , TELETECH COMMUNICA,SECONDARY BECC PHONES,"Environment, Housing & Regeneration Directorate",Purchase of IT Equipment,F380,
http://opendatacommunities.org/id/london-borough-council/sutton,London Borough of Sutton,24/04/2019,1272895,204.00 , WWW.MIRCOSOFTTRAIN,ESSENTIAL TRAINING - MT MPS EXCEL ADVANCED,"Environment, Housing & Regeneration Directorate",Training - Course Fees,A520,
http://opendatacommunities.org/id/london-borough-council/sutton,London Borough of Sutton,25/04/2019,1272895,389.98 , WWW.ARGOS.CO.UK,CL&G PURCHASE,Resources Directorate,Grants,F473,
http://opendatacommunities.org/id/london-borough-council/sutton,London Borough of Sutton,05/04/2019,1272895,595.93 , WWW.ARGOS.CO.UK,"PURCHASE OF DOUBLE BED, ELECTRIC COOKER & FRIDGE FREEZER FOR CRISIS LOAN",Resources Directorate,Grants,F473,
http://opendatacommunities.org/id/london-borough-council/sutton,London Borough of Sutton,03/04/2019,1272895,40.00 , WWW.GOV.UK,PROBATE CERTIFICATES X 4,Resources Directorate,General Office Expenses,F235,
http://opendatacommunities.org/id/london-borough-council/sutton,London Borough of Sutton,24/04/2019,1272895,19.98 , THE FAMILY PLANNING AS,19.98 - F009 6417 9999 - FPA SEXUAL HEALTH CHARITY,Peoples Services Directorate,Education Equipment,F009,
